fUSD/lending_fUSD_20260529
["ID","MTS","AMOUNT","RATE_DAILY","PERIOD"]
[423325129,1780057636000,-500.0,0.0001071,2]
[423325136,1780057636000,-500.0,0.0001071,2]
[423325134,1780057636000,-500.0,0.0001071,2]
[423325133,1780057636000,-500.0,0.0001071,2]
[423325132,1780057636000,-500.0,0.0001071,2]
[423325131,1780057636000,-500.0,0.0001071,2]
[423325130,1780057636000,-500.0,0.0001071,2]
[423325123,1780057636000,-312.44179593,0.0001071,2]
[423325127,1780057636000,-372.74151415,0.0001071,2]
[423325126,1780057636000,-500.0,0.0001071,2]
[423325125,1780057636000,-509.93327649,0.0001071,2]
[423325124,1780057636000,-234.20530718,0.0001071,2]
[423325122,1780057636000,-300.0,0.00010654,2]
[423325135,1780057636000,-500.0,0.0001071,2]
[423325128,1780057636000,-500.0,0.0001071,2]
[423325137,1780057636000,-500.0,0.0001071,2]
[423325151,1780057636000,-500.0,0.0001071,2]
[423325139,1780057636000,-500.0,0.0001071,2]
[423325138,1780057636000,-500.0,0.0001071,2]
[423325153,1780057636000,-500.0,0.0001071,2]
[423325152,1780057636000,-500.0,0.0001071,2]
[423325150,1780057636000,-500.0,0.0001071,2]
[423325149,1780057636000,-500.0,0.0001071,2]
[423325148,1780057636000,-500.0,0.0001071,2]
[423325147,1780057636000,-500.0,0.0001071,2]
[423325154,1780057636000,-500.0,0.0001071,2]
[423325145,1780057636000,-500.0,0.0001071,2]
[423325144,1780057636000,-500.0,0.0001071,2]
[423325142,1780057636000,-500.0,0.0001071,2]
[423325141,1780057636000,-500.0,0.0001071,2]
[423325143,1780057636000,-500.0,0.0001071,2]
[423325140,1780057636000,-500.0,0.0001071,2]
[423325146,1780057636000,-277.03493795,0.0001071,2]
[423325167,1780057637000,-500.0,0.0001071,2]
[423325169,1780057637000,-500.0,0.0001071,2]
[423325168,1780057637000,-500.0,0.0001071,2]
[423325164,1780057637000,-500.0,0.0001071,2]
[423325165,1780057637000,-500.0,0.0001071,2]
[423325162,1780057637000,-500.0,0.0001071,2]
[423325163,1780057637000,-181.66069941,0.0001071,2]
[423325158,1780057637000,-500.0,0.0001071,2]
[423325160,1780057637000,-500.0,0.0001071,2]
[423325159,1780057637000,-500.0,0.0001071,2]
[423325157,1780057637000,-500.0,0.0001071,2]
[423325156,1780057637000,-500.0,0.0001071,2]
[423325155,1780057637000,-500.0,0.0001071,2]
[423325170,1780057637000,-500.0,0.0001071,2]
[423325161,1780057637000,-500.0,0.0001071,2]
[423325171,1780057637000,-363.32139882,0.0001071,2]
[423325166,1780057637000,-500.0,0.0001071,2]
[423325173,1780057637000,-152.62959736,0.00010731,2]
[423325187,1780057637000,-29665.316286,0.00010732,2]
[423325185,1780057637000,-281.77499056,0.00010731,2]
[423325186,1780057637000,-500.0,0.00010731,2]
[423325184,1780057637000,-500.0,0.00010731,2]
[423325182,1780057637000,-442.43159688,0.00010731,2]
[423325183,1780057637000,-500.0,0.00010731,2]
[423325181,1780057637000,-500.0,0.00010731,2]
[423325172,1780057637000,-1200.0,0.00010731,2]
[423325178,1780057637000,-500.0,0.00010731,2]
[423325179,1780057637000,-500.0,0.00010731,2]
[423325177,1780057637000,-500.0,0.00010731,2]
[423325188,1780057637000,-2500000.0,0.00010732,2]
[423325175,1780057637000,-597.90034741,0.00010731,2]
[423325176,1780057637000,-500.0,0.00010731,2]
[423325174,1780057637000,-390.91853383,0.00010731,2]
[423325180,1780057637000,-500.0,0.00010731,2]
[423325190,1780057638000,-1500000.0,0.00010732,2]
[423325191,1780057638000,-150.0,0.00010737,2]
[423325193,1780057638000,-150.0,0.00010844,2]
[423325192,1780057638000,-268.77,0.0001078,2]
[423325189,1780057638000,-2000.0,0.00010732,2]
[423325196,1780057638000,-250.0,0.00010932,2]
[423325195,1780057638000,-153.61,0.00010907,2]
[423325194,1780057638000,-4354.02038851,0.000109,2]
[423325197,1780057638000,-184.14762126,0.00010932,2]
[423325198,1780057638000,-150.0,0.0001095,2]
[423325199,1780057638000,-153.61,0.00010979,2]
[423325201,1780057640000,500.0,0.00010984,2]
[423325200,1780057640000,500.0,0.0001071,2]
[423325202,1780057645000,-403.88776501,0.00011032,2]
[423325203,1780057650000,846800.93607904,0.00010532,2]
[423325204,1780057650000,184.54672049,0.00010532,2]
[423325205,1780057672000,1013.529,0.00028,120]
[423325207,1780057733000,-48010.46020047,0.00010532,2]
[423325208,1780057733000,-1500000.0,0.00010532,2]
[423325209,1780057733000,-236.22797422,0.00010623,2]
[423325212,1780057733000,-2500.0,0.00010632,2]
[423325210,1780057733000,-2000.0,0.00010632,2]
[423325214,1780057733000,-209.09056759,0.00010636,2]
[423325215,1780057733000,-1025.5045555,0.00010732,2]
[423325216,1780057733000,2000.0,0.000108,3]
[423325211,1780057733000,-215.5484138,0.00010632,2]
[423325213,1780057733000,-5000.0,0.00010632,2]
[423325217,1780057736000,4000.0,0.000109,3]
[423325218,1780057737000,286.92148783,0.00010532,2]
[423325226,1780057802000,500.0,0.00010958,3]
[423325227,1780057803000,500.0,0.00010958,4]
[423325229,1780057803000,500.0,0.00010958,6]
[423325228,1780057803000,500.0,0.00010958,5]
[423325230,1780057805000,500.0,0.00010958,7]
[423325231,1780057805000,500.0,0.00010958,8]
[423325237,1780057806000,500.0,0.00010958,14]
[423325236,1780057806000,500.0,0.00010958,13]
[423325235,1780057806000,500.0,0.00010958,12]
[423325234,1780057806000,500.0,0.00010958,11]
[423325233,1780057806000,500.0,0.00010958,10]
[423325232,1780057806000,500.0,0.00010958,9]
[423325238,1780057807000,571.80798744,0.00010958,15]
[423325319,1780057852000,-400.0,0.00010577,2]
[423325320,1780057852000,-800.0,0.00010631,2]
[423325344,1780057853000,-500.0,0.00010631,2]
[423325342,1780057853000,-500.0,0.00010631,2]
[423325345,1780057853000,-500.0,0.00010631,2]
[423325347,1780057853000,-500.0,0.00010631,2]
[423325346,1780057853000,-500.0,0.00010631,2]
[423325349,1780057853000,-500.0,0.00010631,2]
[423325350,1780057853000,-500.0,0.00010631,2]
[423325351,1780057853000,-500.0,0.00010631,2]
[423325356,1780057853000,-500.0,0.00010631,2]
[423325353,1780057853000,-377.19862538,0.00010631,2]
[423325355,1780057853000,-500.0,0.00010631,2]
[423325341,1780057853000,-500.0,0.00010631,2]
[423325357,1780057853000,-500.0,0.00010631,2]
[423325354,1780057853000,-500.0,0.00010631,2]
[423325359,1780057853000,-500.0,0.00010631,2]
[423325360,1780057853000,-500.0,0.00010631,2]
[423325362,1780057853000,-500.0,0.00010631,2]
[423325352,1780057853000,-500.0,0.00010631,2]
[423325339,1780057853000,-500.0,0.00010631,2]
[423325334,1780057853000,-500.0,0.00010631,2]
[423325340,1780057853000,-500.0,0.00010631,2]
[423325358,1780057853000,-500.0,0.00010631,2]
[423325322,1780057853000,-293.0,0.00010631,2]
[423325321,1780057853000,-400.0,0.00010631,2]
[423325324,1780057853000,-500.0,0.00010631,2]
[423325323,1780057853000,-215.5484138,0.00010631,2]
[423325325,1780057853000,-500.0,0.00010631,2]
[423325326,1780057853000,-500.0,0.00010631,2]
[423325327,1780057853000,-500.0,0.00010631,2]
[423325343,1780057853000,-500.0,0.00010631,2]
[423325328,1780057853000,-500.0,0.00010631,2]
[423325336,1780057853000,-500.0,0.00010631,2]
[423325335,1780057853000,-500.0,0.00010631,2]
[423325333,1780057853000,-500.0,0.00010631,2]
[423325331,1780057853000,-98.55850578,0.00010631,2]
[423325332,1780057853000,-500.0,0.00010631,2]
[423325330,1780057853000,-401.44149422,0.00010631,2]
[423325337,1780057853000,-500.0,0.00010631,2]
[423325338,1780057853000,-500.0,0.00010631,2]
[423325329,1780057853000,-500.0,0.00010631,2]
[423325361,1780057853000,-500.0,0.00010631,2]
[423325348,1780057853000,-500.0,0.00010631,2]
[423325363,1780057853000,-500.0,0.00010631,2]
[423325387,1780057853000,-254.0929324,0.00010632,2]
[423325388,1780057853000,-1891.77931548,0.00010632,2]
[423325390,1780057853000,-1518.69740218,0.00010632,2]
[423325391,1780057853000,-171.58070749,0.00010726,2]
[423325392,1780057853000,-179.88057214,0.00010731,2]
[423325397,1780057853000,-500.0,0.00010731,2]
[423325393,1780057853000,-500.0,0.00010731,2]
[423325395,1780057853000,-500.0,0.00010731,2]
[423325386,1780057853000,-501.0241842,0.00010631,2]
[423325394,1780057853000,-590.67473181,0.00010731,2]
[423325398,1780057853000,-500.0,0.00010731,2]
[423325399,1780057853000,-500.0,0.00010731,2]
[423325400,1780057853000,-169.70819938,0.00010731,2]
[423325401,1780057853000,-479.8419934,0.00010731,2]
[423325404,1780057853000,-122688.48917677,0.00010957,2]
[423325403,1780057853000,-500.0,0.00010932,2]
[423325405,1780057853000,-165866.59694239,0.00010957,2]
[423325364,1780057853000,-500.0,0.00010631,2]
[423325396,1780057853000,-500.0,0.00010731,2]
[423325385,1780057853000,-500.0,0.00010631,2]
[423325389,1780057853000,-2945.83406362,0.00010632,2]
[423325384,1780057853000,-500.0,0.00010631,2]
[423325366,1780057853000,-500.0,0.00010631,2]
[423325376,1780057853000,-500.0,0.00010631,2]
[423325365,1780057853000,-500.0,0.00010631,2]
[423325367,1780057853000,-500.0,0.00010631,2]
[423325368,1780057853000,-500.0,0.00010631,2]
[423325383,1780057853000,-500.0,0.00010631,2]
[423325372,1780057853000,-500.0,0.00010631,2]
[423325375,1780057853000,-500.0,0.00010631,2]
[423325373,1780057853000,-500.0,0.00010631,2]
[423325374,1780057853000,-500.0,0.00010631,2]
[423325370,1780057853000,-500.0,0.00010631,2]
[423325369,1780057853000,-500.0,0.00010631,2]
[423325371,1780057853000,-500.0,0.00010631,2]
[423325381,1780057853000,-269.38056195,0.00010631,2]
[423325380,1780057853000,-500.0,0.00010631,2]
[423325382,1780057853000,-500.0,0.00010631,2]
[423325379,1780057853000,-500.0,0.00010631,2]
[423325402,1780057853000,-9999.99,0.0001078,2]
[423325377,1780057853000,-500.0,0.00010631,2]
[423325378,1780057853000,-500.0,0.00010631,2]
[423325406,1780057854000,2500.0,0.00028,120]
[423325417,1780057855000,-268.77,0.00011037,2]
[423325408,1780057855000,-406.60427578,0.00010731,2]
[423325411,1780057855000,-500.0,0.00010731,2]
[423325409,1780057855000,-500.0,0.00010731,2]
[423325407,1780057855000,-500.0,0.00010731,2]
[423325415,1780057855000,-500.0,0.00010958,2]
[423325412,1780057855000,-500.0,0.00010731,2]
[423325414,1780057855000,-2211444.91388084,0.00010957,2]
[423325416,1780057855000,-5265.0,0.00011,2]
[423325413,1780057855000,-500.0,0.00010731,2]
[423325410,1780057855000,-500.0,0.00010731,2]
[423325426,1780057855000,-439.66026418,0.00011078,2]
[423325418,1780057855000,-153.61,0.00011051,2]
[423325429,1780057855000,-4632.0,0.00011079,2]
[423325422,1780057855000,-437.0,0.00011057,2]
[423325423,1780057855000,-932.0,0.00011057,2]
[423325425,1780057855000,-255.93,0.00011057,2]
[423325424,1780057855000,-7846.0,0.00011057,2]
[423325420,1780057855000,-150.99,0.00011056,2]
[423325428,1780057855000,-550.0,0.00011079,2]
[423325419,1780057855000,-299.99,0.00011056,2]
[423325427,1780057855000,-1617.0,0.00011079,2]
[423325421,1780057855000,-150.0,0.00011056,2]
[423325469,1780057856000,-500.0,0.00011694,2]
[423325468,1780057856000,-250.0,0.00011694,2]
[423325466,1780057856000,-1680.0,0.00011694,2]
[423325467,1780057856000,-2064.40484623,0.00011694,2]
[423325459,1780057856000,-471.0,0.00011402,2]
[423325465,1780057856000,-153.61,0.00011625,2]
[423325473,1780057856000,-153.61,0.00011768,2]
[423325462,1780057856000,-153.61,0.00011481,2]
[423325460,1780057856000,-153.61,0.0001141,2]
[423325457,1780057856000,-1283.0,0.00011379,2]
[423325463,1780057856000,-153.61,0.00011553,2]
[423325476,1780057856000,-153.61,0.00011912,2]
[423325471,1780057856000,-153.61,0.00011697,2]
[423325482,1780057856000,-207.31,0.00012329,2]
[423325472,1780057856000,-150.0,0.00011706,2]
[423325477,1780057856000,-153.61,0.00011984,2]
[423325458,1780057856000,-2862.47183378,0.000114,2]
[423325470,1780057856000,-250.0,0.00011695,2]
[423325475,1780057856000,-151.29,0.00011886,2]
[423325479,1780057856000,-153.61,0.00012055,2]
[423325478,1780057856000,-1007.51899633,0.00012055,2]
[423325487,1780057856000,-2000.0,0.00012561,2]
[423325481,1780057856000,-3809.76783999,0.00012131,2]
[423325483,1780057856000,-4175.2365,0.00012461,2]
[423325480,1780057856000,-255.0,0.00012106,2]
[423325474,1780057856000,-153.61,0.0001184,2]
[423325464,1780057856000,-1007.51899633,0.0001158,2]
[423325453,1780057856000,-1694.0,0.00011312,2]
[423325461,1780057856000,-747.0,0.00011424,2]
[423325484,1780057856000,-3809.76783992,0.00012527,2]
[423325431,1780057856000,-1320.0,0.00011101,2]
[423325430,1780057856000,-1007.51899639,0.00011099,2]
[423325432,1780057856000,-160.0,0.00011103,2]
[423325435,1780057856000,-13238.59406786,0.00011108,2]
[423325437,1780057856000,-153.61,0.00011123,2]
[423325439,1780057856000,-872.0,0.00011143,2]
[423325434,1780057856000,-163.0,0.00011108,2]
[423325433,1780057856000,-1007.51899633,0.00011106,2]
[423325436,1780057856000,-2731.01,0.0001112,2]
[423325438,1780057856000,-1606.0,0.00011123,2]
[423325440,1780057856000,-4122.0,0.00011143,2]
[423325455,1780057856000,-153.61,0.00011338,2]
[423325441,1780057856000,-1592.0,0.00011145,2]
[423325443,1780057856000,-2000.0,0.00011166,2]
[423325452,1780057856000,-196.12610297,0.00011293,2]
[423325444,1780057856000,-1060.0,0.00011188,2]
[423325445,1780057856000,-153.61,0.00011194,2]
[423325446,1780057856000,-151.29,0.00011226,2]
[423325450,1780057856000,-1043.0,0.00011289,2]
[423325447,1780057856000,-841.0,0.00011244,2]
[423325449,1780057856000,-1783.0,0.00011267,2]
[423325451,1780057856000,-268.77,0.00011293,2]
[423325448,1780057856000,-153.61,0.00011266,2]
[423325454,1780057856000,-813.0,0.00011334,2]
[423325456,1780057856000,-1297.0,0.00011357,2]
[423325442,1780057856000,-1103.0,0.00011165,2]
[423325486,1780057856000,-151.29,0.00012547,2]
[423325492,1780057856000,-500.0,0.00012641,2]
[423325488,1780057856000,-500.0,0.00012641,2]
[423325516,1780057856000,-5431.23,0.0001288,2]
[423325519,1780057856000,-1007.51899633,0.00013003,2]
[423325523,1780057856000,-286.92148777,0.00013467,2]
[423325533,1780057856000,-250.0,0.00013566,2]
[423325522,1780057856000,-3809.76783992,0.00013318,2]
[423325524,1780057856000,-1007.51899633,0.00013477,2]
[423325525,1780057856000,-150.0,0.00013488,2]
[423325527,1780057856000,-150.0,0.00013488,2]
[423325532,1780057856000,-226.56960287,0.00013553,2]
[423325526,1780057856000,-150.0,0.00013488,2]
[423325528,1780057856000,-150.0,0.00013488,2]
[423325530,1780057856000,-150.0,0.00013488,2]
[423325513,1780057856000,-1325.94,0.00012788,2]
[423325531,1780057856000,-157.66385825,0.00013488,2]
[423325542,1780057856000,-500.0,0.00013698,2]
[423325538,1780057856000,-500.0,0.00013698,2]
[423325545,1780057856000,-500.0,0.00013698,2]
[423325539,1780057856000,-500.0,0.00013698,2]
[423325540,1780057856000,-500.0,0.00013698,2]
[423325485,1780057856000,-1007.51899633,0.00012529,2]
[423325536,1780057856000,-433.92185186,0.00013647,2]
[423325544,1780057856000,-500.0,0.00013698,2]
[423325535,1780057856000,-2000.0,0.00013598,2]
[423325541,1780057856000,-500.0,0.00013698,2]
[423325534,1780057856000,-33230.1787,0.00013598,2]
[423325543,1780057856000,-500.0,0.00013698,2]
[423325529,1780057856000,-150.0,0.00013488,2]
[423325514,1780057856000,-2351.0,0.00012864,2]
[423325537,1780057856000,-223.53549944,0.00013647,2]
[423325520,1780057856000,-151.29,0.00013207,2]
[423325517,1780057856000,-6000.0,0.000129,4]
[423325489,1780057856000,-500.0,0.00012641,2]
[423325499,1780057856000,-500.0,0.00012641,2]
[423325490,1780057856000,-500.0,0.00012641,2]
[423325497,1780057856000,-500.0,0.00012641,2]
[423325494,1780057856000,-500.0,0.00012641,2]
[423325496,1780057856000,-500.0,0.00012641,2]
[423325493,1780057856000,-500.0,0.00012641,2]
[423325498,1780057856000,-500.0,0.00012641,2]
[423325495,1780057856000,-500.0,0.00012641,2]
[423325501,1780057856000,-500.0,0.00012641,2]
[423325500,1780057856000,-501.32346494,0.00012641,2]
[423325503,1780057856000,-500.0,0.00012641,2]
[423325491,1780057856000,-500.0,0.00012641,2]
[423325505,1780057856000,-500.0,0.00012641,2]
[423325507,1780057856000,-500.0,0.00012641,2]
[423325521,1780057856000,-433.0,0.00013256,2]
[423325518,1780057856000,-3809.76783992,0.00012922,2]
[423325512,1780057856000,-189.65952921,0.00012766,2]
[423325511,1780057856000,-638.80349083,0.00012641,2]
[423325515,1780057856000,-5431.23,0.0001288,2]
[423325504,1780057856000,-500.0,0.00012641,2]
[423325502,1780057856000,-501.82701672,0.00012641,2]
[423325508,1780057856000,-500.0,0.00012641,2]
[423325509,1780057856000,-623.5560071,0.00012641,2]
[423325506,1780057856000,-500.0,0.00012641,2]
[423325510,1780057856000,-500.0,0.00012641,2]
[423325574,1780057857000,-357.5,0.00013698,2]
[423325580,1780057857000,-500.0,0.00013698,2]
[423325577,1780057857000,-500.0,0.00013698,2]
[423325573,1780057857000,-500.0,0.00013698,2]
[423325578,1780057857000,-500.0,0.00013698,2]
[423325571,1780057857000,-500.0,0.00013698,2]
[423325572,1780057857000,-500.0,0.00013698,2]
[423325575,1780057857000,-500.0,0.00013698,2]
[423325570,1780057857000,-500.0,0.00013698,2]
[423325583,1780057857000,-500.0,0.00013698,2]
[423325579,1780057857000,-500.0,0.00013698,2]
[423325582,1780057857000,-500.0,0.00013698,2]
[423325576,1780057857000,-500.0,0.00013698,2]
[423325588,1780057857000,-500.0,0.00013698,2]
[423325585,1780057857000,-500.0,0.00013698,2]
[423325587,1780057857000,-500.0,0.00013698,2]
[423325586,1780057857000,-500.0,0.00013698,2]
[423325569,1780057857000,-500.0,0.00013698,2]
[423325581,1780057857000,-500.0,0.00013698,2]
[423325559,1780057857000,-500.0,0.00013698,2]
[423325557,1780057857000,-500.0,0.00013698,2]
[423325562,1780057857000,-500.0,0.00013698,2]
[423325590,1780057857000,-500.0,0.00013698,2]
[423325546,1780057857000,-560.55,0.00013698,2]
[423325548,1780057857000,-500.0,0.00013698,2]
[423325551,1780057857000,-500.0,0.00013698,2]
[423325547,1780057857000,-500.0,0.00013698,2]
[423325549,1780057857000,-500.0,0.00013698,2]
[423325550,1780057857000,-500.0,0.00013698,2]
[423325554,1780057857000,-500.0,0.00013698,2]
[423325553,1780057857000,-500.0,0.00013698,2]
[423325556,1780057857000,-500.0,0.00013698,2]
[423325552,1780057857000,-500.0,0.00013698,2]
[423325555,1780057857000,-500.0,0.00013698,2]
[423325560,1780057857000,-611.9,0.00013698,2]
[423325558,1780057857000,-500.0,0.00013698,2]
[423325566,1780057857000,-500.0,0.00013698,2]
[423325567,1780057857000,-500.0,0.00013698,2]
[423325563,1780057857000,-500.0,0.00013698,2]
[423325561,1780057857000,-500.0,0.00013698,2]
[423325565,1780057857000,-500.0,0.00013698,2]
[423325568,1780057857000,-500.0,0.00013698,2]
[423325591,1780057857000,-500.0,0.00013698,2]
[423325564,1780057857000,-500.0,0.00013698,2]
[423325594,1780057857000,-500.0,0.00013698,2]
[423325634,1780057857000,-301.24,0.00013698,2]
[423325617,1780057857000,-500.0,0.00013698,2]
[423325615,1780057857000,-500.0,0.00013698,2]
[423325613,1780057857000,-500.0,0.00013698,2]
[423325619,1780057857000,-500.0,0.00013698,2]
[423325620,1780057857000,-500.0,0.00013698,2]
[423325627,1780057857000,-500.0,0.00013698,2]
[423325626,1780057857000,-500.0,0.00013698,2]
[423325621,1780057857000,-500.0,0.00013698,2]
[423325622,1780057857000,-500.0,0.00013698,2]
[423325624,1780057857000,-500.0,0.00013698,2]
[423325625,1780057857000,-500.0,0.00013698,2]
[423325623,1780057857000,-500.0,0.00013698,2]
[423325628,1780057857000,-500.0,0.00013698,2]
[423325631,1780057857000,-500.0,0.00013698,2]
[423325633,1780057857000,-500.0,0.00013698,2]
[423325630,1780057857000,-500.0,0.00013698,2]
[423325632,1780057857000,-500.0,0.00013698,2]
[423325584,1780057857000,-500.0,0.00013698,2]
[423325614,1780057857000,-500.0,0.00013698,2]
[423325612,1780057857000,-500.0,0.00013698,2]
[423325629,1780057857000,-500.0,0.00013698,2]
[423325616,1780057857000,-500.0,0.00013698,2]
[423325608,1780057857000,-500.0,0.00013698,2]
[423325589,1780057857000,-500.0,0.00013698,2]
[423325595,1780057857000,-500.0,0.00013698,2]
[423325593,1780057857000,-500.0,0.00013698,2]
[423325604,1780057857000,-500.0,0.00013698,2]
[423325596,1780057857000,-500.0,0.00013698,2]
[423325600,1780057857000,-500.0,0.00013698,2]
[423325601,1780057857000,-500.0,0.00013698,2]
[423325598,1780057857000,-500.0,0.00013698,2]
[423325603,1780057857000,-500.0,0.00013698,2]
[423325592,1780057857000,-184.55,0.00013698,2]
[423325607,1780057857000,-500.0,0.00013698,2]
[423325605,1780057857000,-500.0,0.00013698,2]
[423325610,1780057857000,-500.0,0.00013698,2]
[423325609,1780057857000,-500.0,0.00013698,2]
[423325602,1780057857000,-500.0,0.00013698,2]
[423325618,1780057857000,-500.0,0.00013698,2]
[423325599,1780057857000,-500.0,0.00013698,2]
[423325597,1780057857000,-500.0,0.00013698,2]
[423325606,1780057857000,-500.0,0.00013698,2]
[423325611,1780057857000,-500.0,0.00013698,2]
[423325658,1780057858000,-1461.0,0.00013699,2]
[423325653,1780057858000,-200.0,0.00013699,2]
[423325662,1780057858000,-1461.0,0.00013699,2]
[423325659,1780057858000,-1461.0,0.00013699,2]
[423325656,1780057858000,-1461.0,0.00013699,2]
[423325652,1780057858000,-584.43,0.00013698,2]
[423325663,1780057858000,-1461.0,0.00013699,2]
[423325667,1780057858000,-1461.0,0.00013699,2]
[423325661,1780057858000,-1461.0,0.00013699,2]
[423325664,1780057858000,-1461.0,0.00013699,2]
[423325670,1780057858000,-1461.0,0.00013699,2]
[423325665,1780057858000,-1461.0,0.00013699,2]
[423325657,1780057858000,-1461.0,0.00013699,2]
[423325666,1780057858000,-1461.0,0.00013699,2]
[423325655,1780057858000,-1461.0,0.00013699,2]
[423325654,1780057858000,-166.66,0.00013699,2]
[423325645,1780057858000,-584.43,0.00013698,2]
[423325651,1780057858000,-584.43,0.00013698,2]
[423325668,1780057858000,-1461.0,0.00013699,2]
[423325643,1780057858000,-584.43,0.00013698,2]
[423325635,1780057858000,-584.43,0.00013698,2]
[423325649,1780057858000,-584.43,0.00013698,2]
[423325638,1780057858000,-584.43,0.00013698,2]
[423325636,1780057858000,-584.43,0.00013698,2]
[423325639,1780057858000,-584.43,0.00013698,2]
[423325648,1780057858000,-584.43,0.00013698,2]
[423325644,1780057858000,-584.43,0.00013698,2]
[423325641,1780057858000,-584.43,0.00013698,2]
[423325637,1780057858000,-584.43,0.00013698,2]
[423325640,1780057858000,-584.43,0.00013698,2]
[423325646,1780057858000,-584.43,0.00013698,2]
[423325647,1780057858000,-584.43,0.00013698,2]
[423325650,1780057858000,-584.43,0.00013698,2]
[423325660,1780057858000,-1461.0,0.00013699,2]
[423325671,1780057858000,-1461.0,0.00013699,2]
[423325642,1780057858000,-584.43,0.00013698,2]
[423325674,1780057858000,-1461.0,0.00013699,2]
[423325691,1780057858000,-767.27746,0.00014308,2]
[423325690,1780057858000,-600.0,0.000143,5]
[423325695,1780057858000,-1900.0,0.000145,5]
[423325696,1780057858000,-3809.76783992,0.00014504,2]
[423325697,1780057858000,-9999.99,0.00014504,2]
[423325700,1780057858000,-8000.0,0.000146,5]
[423325701,1780057858000,-2600.0,0.000146,5]
[423325698,1780057858000,-736.0,0.00014517,2]
[423325699,1780057858000,-151.29,0.00014528,2]
[423325704,1780057858000,-3200.0,0.000147,5]
[423325703,1780057858000,-10100.0,0.000147,5]
[423325705,1780057858000,-1090.0413457,0.000147,2]
[423325706,1780057858000,-284.47464731,0.00014724,2]
[423325702,1780057858000,-1681.339632,0.000147,2]
[423325669,1780057858000,-1461.0,0.00013699,2]
[423325692,1780057858000,-166.66,0.00014384,2]
[423325689,1780057858000,-166.66,0.00014247,2]
[423325707,1780057858000,-1000.0,0.00014737,2]
[423325694,1780057858000,-1007.51899633,0.00014426,2]
[423325687,1780057858000,-166.66,0.0001411,2]
[423325675,1780057858000,-1461.0,0.00013699,2]
[423325678,1780057858000,-1480.75333503,0.00013699,2]
[423325673,1780057858000,-1461.0,0.00013699,2]
[423325676,1780057858000,-1461.0,0.00013699,2]
[423325672,1780057858000,-1461.0,0.00013699,2]
[423325683,1780057858000,-2000.0,0.00013957,2]
[423325685,1780057858000,-250.0,0.00014,2]
[423325677,1780057858000,-1461.0,0.00013699,2]
[423325684,1780057858000,-166.66,0.00013973,2]
[423325680,1780057858000,-166.66,0.00013836,2]
[423325681,1780057858000,-151.29,0.00013867,2]
[423325682,1780057858000,-1007.51899633,0.00013952,2]
[423325686,1780057858000,-3809.76783992,0.00014109,2]
[423325679,1780057858000,-3809.76783992,0.00013713,2]
[423325693,1780057858000,-1300.0,0.000144,5]
[423325688,1780057858000,-3292.0,0.0001415,2]
[423325722,1780057859000,-500.0,0.00014999,2]
[423325728,1780057859000,-500.0,0.00014999,2]